fUST/lending_fUST_20250909
["ID","MTS","AMOUNT","RATE_DAILY","PERIOD"]
[384457215,1757425843132,-314.57326637,0.00013698,2]
[384457217,1757425843141,-945.22,0.00013698,2]
[384457219,1757425843150,-480.0,0.00013698,2]
[384457221,1757425843159,-480.0,0.00013698,2]
[384457223,1757425843168,-480.0,0.00013698,2]
[384457225,1757425843178,-930.8,0.00013698,2]
[384457227,1757425843187,-480.0,0.00013698,2]
[384457229,1757425843197,-446.12771626,0.00013698,2]
[384457231,1757425843206,-480.0,0.00013698,2]
[384457233,1757425843216,-480.0,0.00013698,2]
[384457234,1757425843225,-480.0,0.00013698,2]
[384457236,1757425843234,-480.0,0.00013698,2]
[384457238,1757425843243,-480.0,0.00013698,2]
[384457240,1757425843252,-539.02,0.00013698,2]
[384457242,1757425843261,-480.0,0.00013698,2]
[384457244,1757425843271,-1068.62,0.00013698,2]
[384457246,1757425843280,-480.0,0.00013698,2]
[384457248,1757425843289,-480.0,0.00013698,2]
[384457250,1757425843298,-456.44694732,0.00013698,2]
[384457253,1757425843308,-480.0,0.00013698,2]
[384457256,1757425843320,-480.0,0.00013698,2]
[384457259,1757425843330,-282.39888989,0.00013698,2]
[384457261,1757425843340,-480.0,0.00013698,2]
[384457265,1757425843350,-480.0,0.00013698,2]
[384457268,1757425843360,-480.0,0.00013698,2]
[384457271,1757425843370,-160.92294055,0.00013698,2]
[384457274,1757425843379,-480.0,0.00013698,2]
[384457277,1757425843389,-480.0,0.00013698,2]
[384457280,1757425843399,-481.62485441,0.00013698,2]
[384457283,1757425843409,-2146.48,0.00013698,2]
[384457285,1757425843419,-480.0,0.00013698,2]
[384457288,1757425843429,-228.77865839,0.00013698,2]
[384457292,1757425843439,-2082.23,0.00013698,2]
[384457295,1757425843448,-480.0,0.00013698,2]
[384457298,1757425843458,-480.0,0.00013698,2]
[384457301,1757425843468,-480.0,0.00013698,2]
[384457304,1757425843478,-3051.05,0.00013698,2]
[384457307,1757425843488,-705.78,0.00013698,2]
[384457309,1757425843497,-480.0,0.00013698,2]
[384457312,1757425843507,-632.01,0.00013698,2]
[384457316,1757425843517,-480.0,0.00013698,2]
[384457318,1757425843527,-2705.35,0.00013698,2]
[384457319,1757425843537,-480.0,0.00013698,2]
[384457320,1757425843548,-480.0,0.00013698,2]
[384457321,1757425843559,-480.0,0.00013698,2]
[384457322,1757425843572,-480.0,0.00013698,2]
[384457323,1757425843583,-480.0,0.00013698,2]
[384457324,1757425843592,-680.87,0.00013698,2]
[384457325,1757425843602,-685.22,0.00013698,2]
[384457326,1757425843612,-604.22,0.00013698,2]
[384457327,1757425843622,-480.0,0.00013698,2]
[384457328,1757425843632,-480.0,0.00013698,2]
[384457329,1757425843642,-480.0,0.00013698,2]
[384457330,1757425843652,-1386.71,0.00013698,2]
[384457332,1757425843662,-3096.85,0.00013698,2]
[384457333,1757425843671,-480.0,0.00013698,2]
[384457334,1757425843681,-480.0,0.00013698,2]
[384457335,1757425843691,-480.0,0.00013698,2]
[384457336,1757425843700,-648.36,0.00013698,2]
[384457337,1757425843710,-477.50718541,0.00013698,2]
[384457338,1757425843719,-480.0,0.00013698,2]
[384457339,1757425843729,-480.0,0.00013698,2]
[384457340,1757425843738,-480.0,0.00013698,2]
[384457341,1757425843748,-1614.94,0.00013698,2]
[384457342,1757425843757,-829.57,0.00013698,2]
[384457343,1757425843767,-480.0,0.00013698,2]
[384457344,1757425843776,-480.0,0.00013698,2]
[384457345,1757425843786,-506.82,0.00013698,2]
[384457346,1757425843795,-835.71,0.00013698,2]
[384457347,1757425843805,-482.5048012,0.00013698,2]
[384457348,1757425843814,-480.0,0.00013698,2]
[384457349,1757425843827,-480.0,0.00013698,2]
[384457350,1757425843836,-791.03,0.00013698,2]
[384457351,1757425843845,-480.0,0.00013698,2]
[384457352,1757425843855,-1724.16,0.00013698,2]
[384457353,1757425843865,-480.0,0.00013698,2]
[384457354,1757425843875,-480.0,0.00013698,2]
[384457355,1757425843884,-1039.46,0.00013698,2]
[384457356,1757425843893,-803.21,0.00013698,2]
[384457357,1757425843903,-480.0,0.00013698,2]
[384457358,1757425843912,-603.07,0.00013698,2]
[384457359,1757425843921,-480.0,0.00013698,2]
[384457360,1757425843931,-480.0,0.00013698,2]
[384457361,1757425843940,-480.0,0.00013698,2]
[384457362,1757425843950,-2581.42,0.00013698,2]
[384457363,1757425843959,-880.11,0.00013698,2]
[384457364,1757425843969,-2898.86225984,0.00013698,2]
[384457371,1757425844130,-5064.77774016,0.00013698,2]
[384457372,1757425844141,-480.0,0.00013698,2]
[384457373,1757425844151,-707.25,0.00013698,2]
[384457374,1757425844160,-587.78,0.00013698,2]
[384457375,1757425844170,-480.0,0.00013698,2]
[384457376,1757425844179,-480.0,0.00013698,2]
[384457377,1757425844189,-480.0,0.00013698,2]
[384457378,1757425844198,-485.34589563,0.00013698,2]
[384457379,1757425844214,-480.0,0.00013698,2]
[384457380,1757425844223,-480.0,0.00013698,2]
[384457381,1757425844233,-480.0,0.00013698,2]
[384457382,1757425844242,-1056.18,0.00013698,2]
[384457383,1757425844252,-435.60249108,0.00013698,2]
[384457384,1757425844261,-1207.61,0.00013698,2]
[384457385,1757425844271,-854.22,0.00013698,2]
[384457386,1757425844280,-700.41,0.00013698,2]
[384457387,1757425844290,-518.39,0.00013698,2]
[384457388,1757425844300,-1002.33,0.00013698,2]
[384457389,1757425844309,-2178.24,0.00013698,2]
[384457390,1757425844321,-1093.22,0.00013698,2]
[384457391,1757425844330,-620.45,0.00013698,2]
[384457392,1757425844340,-2956.82,0.00013698,2]
[384457393,1757425844350,-1032.9,0.00013698,2]
[384457394,1757425844359,-1029.14,0.00013698,2]
[384457395,1757425844369,-480.0,0.00013698,2]
[384457396,1757425844378,-3858.79,0.00013698,2]
[384457397,1757425844388,-5150.25,0.00013698,2]
[384457398,1757425844397,-546.97,0.00013698,2]
[384457399,1757425844407,-1401.2,0.00013698,2]
[384457400,1757425844416,-457.16364871,0.00013698,2]
[384457401,1757425844426,-480.0,0.00013698,2]
[384457402,1757425844436,-480.0,0.00013698,2]
[384457403,1757425844446,-1828.58,0.00013698,2]
[384457404,1757425844455,-480.0,0.00013698,2]
[384457405,1757425844465,-480.9208494,0.00013698,2]
[384457406,1757425844474,-1043.26,0.00013698,2]
[384457407,1757425844484,-500.0,0.00013698,2]
[384457408,1757425844494,-480.0,0.00013698,2]
[384457409,1757425844503,-3344.529375,0.00013698,2]
[384457412,1757425846683,-15190.47819628,0.00013561,2]
[384457413,1757425846694,-1348.800625,0.00013698,2]
[384457414,1757425846704,-480.0,0.00013698,2]
[384457415,1757425846713,-492.95,0.00013698,2]
[384457416,1757425846723,-480.0,0.00013698,2]
[384457417,1757425846732,-480.0,0.00013698,2]
[384457418,1757425846742,-480.0,0.00013698,2]
[384457419,1757425846752,-480.0,0.00013698,2]
[384457420,1757425846762,-1141.59,0.00013698,2]
[384457421,1757425846771,-913.31,0.00013698,2]
[384457422,1757425846781,-22382.08,0.00013698,2]
[384457423,1757425846792,-480.0,0.00013698,2]
[384457424,1757425846802,-243.802114,0.00013699,2]
[384457425,1757425846812,-1104.651146,0.00013699,2]
[384457426,1757425846821,-203.28455737,0.00013759,2]
[384457427,1757425846833,-217.65034598,0.00013759,2]
[384457428,1757425846843,-530.79566296,0.00013759,2]
[384457429,1757425846853,-233.05759179,0.00013759,2]
[384457430,1757425846863,-160.0,0.00013759,2]
[384457431,1757425846874,-417.15472785,0.00013759,2]
[384457432,1757425846883,-846.80158213,0.00013759,2]
[384457433,1757425846893,-160.0,0.00013759,2]
[384457434,1757425846902,-160.0,0.00013759,2]
[384457435,1757425846911,-160.0,0.00013759,2]
[384457436,1757425846921,-160.0,0.00013759,2]
[384457437,1757425846931,-300.0,0.00013831,2]
[384457438,1757425846940,-300.0,0.00013831,2]
[384457439,1757425846952,-300.0,0.00013831,2]
[384457440,1757425846961,-300.0,0.00013831,2]
[384457441,1757425846972,-300.0,0.00013831,2]
[384457442,1757425846982,-300.0,0.00013831,2]
[384457443,1757425846991,-300.0,0.00013831,2]
[384457444,1757425847001,-300.0,0.00013831,2]
[384457445,1757425847011,-300.0,0.00013831,2]
[384457446,1757425847026,-300.0,0.00013831,2]
[384457447,1757425847040,-300.0,0.00013831,2]
[384457448,1757425847051,-300.0,0.00013831,2]
[384457449,1757425847065,-300.0,0.00013831,2]
[384457450,1757425847075,-300.0,0.00013831,2]
[384457451,1757425847092,-300.0,0.00013831,2]
[384457452,1757425847104,-362.87501293,0.00013839,2]
[384457453,1757425847118,-1000.0,0.00013872,2]
[384457454,1757425847130,-195.09753074,0.00013874,2]
[384457455,1757425847139,-307.787,0.00013892,2]
[384457456,1757425847149,-600.0,0.0001397,2]
[384457457,1757425847158,-500.0,0.00013971,2]
[384457458,1757425847167,-500.0,0.00013972,2]
[384457459,1757425847177,-491.16665435,0.00013972,2]
[384457460,1757425847187,-480.0,0.00013972,2]
[384457461,1757425847196,-480.0,0.00013972,2]
[384457462,1757425847205,-480.0,0.00013972,2]
[384457463,1757425847215,-506.26471381,0.00013972,2]
[384457464,1757425847224,-480.0,0.00013972,2]
[384457465,1757425847233,-480.0,0.00013972,2]
[384457466,1757425847243,-480.0,0.00013972,2]
[384457467,1757425847252,-480.0,0.00013972,2]
[384457468,1757425847261,-480.0,0.00013972,2]
[384457469,1757425847270,-480.0,0.00013972,2]
[384457470,1757425847280,-480.0,0.00013972,2]
[384457471,1757425847289,-695.16,0.00013972,2]
[384457472,1757425847298,-150.73,0.00013972,2]
[384457473,1757425847307,-480.0,0.00013972,2]
[384457474,1757425847317,-480.0,0.00013972,2]
[384457475,1757425847329,-338.37454525,0.00013972,2]
[384457476,1757425847339,-480.0,0.00013972,2]
[384457477,1757425847349,-235.91837116,0.00013972,2]
[384457478,1757425847359,-480.0,0.00013972,2]
[384457479,1757425847368,-480.0,0.00013972,2]
[384457480,1757425847378,-480.0,0.00013972,2]
[384457481,1757425847388,-480.0,0.00013972,2]
[384457482,1757425847398,-480.0,0.00013972,2]
[384457483,1757425847407,-480.0,0.00013972,2]
[384457484,1757425847417,-180.61,0.00013972,2]
[384457485,1757425847427,-649.28,0.00013972,2]
[384457486,1757425847437,-480.0,0.00013972,2]
[384457487,1757425847446,-480.0,0.00013972,2]
[384457488,1757425847456,-480.0,0.00013972,2]
[384457489,1757425847465,-480.0,0.00013972,2]
[384457490,1757425847475,-1424.53,0.00013972,2]
[384457491,1757425847484,-480.0,0.00013972,2]
[384457492,1757425847493,-537.68,0.00013972,2]
[384457493,1757425847503,-480.0,0.00013972,2]
[384457494,1757425847513,-480.0,0.00013972,2]
[384457495,1757425847523,-390.75,0.00013972,2]
[384457496,1757425847532,-480.0,0.00013972,2]
[384457497,1757425847542,-480.0,0.00013972,2]
[384457498,1757425847552,-779.61,0.00013972,2]
[384457499,1757425847562,-480.0,0.00013972,2]
[384457500,1757425847572,-480.0,0.00013972,2]
[384457501,1757425847584,-151.0,0.00013972,2]
[384457502,1757425847594,-480.0,0.00013972,2]
[384457503,1757425847604,-480.0,0.00013972,2]
[384457504,1757425847613,-588.93,0.00013972,2]
[384457505,1757425847623,-860.85,0.00013972,2]
[384457506,1757425847633,-391.6,0.00013972,2]
[384457507,1757425847642,-885.25,0.00013972,2]
[384457508,1757425847652,-706.34,0.00013972,2]
[384457509,1757425847661,-480.0,0.00013972,2]
[384457510,1757425847671,-393.02,0.00013972,2]
[384457511,1757425847680,-480.0,0.00013972,2]
[384457512,1757425847689,-217.57607205,0.00013972,2]
[384457513,1757425847699,-543.86154865,0.00013972,2]
[384457514,1757425847708,-480.0,0.00013972,2]
[384457515,1757425847718,-480.0,0.00013972,2]
[384457516,1757425847727,-1604.11,0.00013972,2]
[384457517,1757425847737,-480.0,0.00013972,2]
[384457518,1757425847746,-480.0,0.00013972,2]
[384457519,1757425847756,-151.0,0.00013972,2]
[384457520,1757425847765,-151.0,0.00013972,2]
[384457521,1757425847775,-480.0,0.00013972,2]
[384457522,1757425847784,-292.01,0.00013972,2]
[384457523,1757425847793,-480.0,0.00013972,2]
[384457524,1757425847803,-480.0,0.00013972,2]
[384457525,1757425847812,-605.2,0.00013972,2]
[384457526,1757425847822,-480.0,0.00013972,2]
[384457527,1757425847833,-480.0,0.00013972,2]
[384457528,1757425847843,-480.0,0.00013972,2]
[384457529,1757425847852,-495.99,0.00013972,2]
[384457530,1757425847862,-480.0,0.00013972,2]
[384457531,1757425847871,-480.0,0.00013972,2]
[384457532,1757425847881,-480.0,0.00013972,2]
[384457533,1757425847890,-480.0,0.00013972,2]
[384457534,1757425847899,-406.93,0.00013972,2]
[384457535,1757425847909,-480.0,0.00013972,2]
[384457536,1757425847918,-480.0,0.00013972,2]
[384457537,1757425847928,-480.0,0.00013972,2]
[384457538,1757425847937,-480.0,0.00013972,2]
[384457539,1757425847947,-480.0,0.00013972,2]
[384457540,1757425847956,-480.0,0.00013972,2]
[384457541,1757425847966,-480.0,0.00013972,2]
[384457542,1757425847976,-480.0,0.00013972,2]
[384457543,1757425847986,-480.0,0.00013972,2]
[384457544,1757425847997,-480.0,0.00013972,2]
[384457545,1757425848007,-802.39,0.00013972,2]
[384457546,1757425848019,-480.0,0.00013972,2]
[384457547,1757425848032,-480.0,0.00013972,2]
[384457548,1757425848042,-480.0,0.00013972,2]
[384457549,1757425848052,-777.5,0.00013972,2]
[384457550,1757425848063,-480.0,0.00013972,2]
[384457551,1757425848073,-480.0,0.00013972,2]
[384457552,1757425848087,-173.64,0.00013972,2]
[384457553,1757425848097,-480.0,0.00013972,2]
[384457554,1757425848108,-480.0,0.00013972,2]
[384457555,1757425848118,-480.0,0.00013972,2]
[384457556,1757425848127,-814.12,0.00013972,2]
[384457557,1757425848138,-480.0,0.00013972,2]
[384457558,1757425848148,-553.26,0.00013972,2]
[384457559,1757425848158,-480.0,0.00013972,2]
[384457560,1757425848168,-480.0,0.00013972,2]
[384457561,1757425848178,-480.0,0.00013972,2]
[384457562,1757425848188,-480.0,0.00013972,2]
[384457563,1757425848198,-782.71,0.00013972,2]
[384457564,1757425848208,-527.59,0.00013972,2]
[384457565,1757425848217,-480.0,0.00013972,2]
[384457566,1757425848227,-659.95,0.00013972,2]
[384457567,1757425848236,-480.0,0.00013972,2]
[384457568,1757425848246,-480.0,0.00013972,2]
[384457569,1757425848256,-480.0,0.00013972,2]
[384457570,1757425848266,-567.56,0.00013972,2]
[384457571,1757425848275,-480.0,0.00013972,2]
[384457572,1757425848285,-760.86,0.00013972,2]
[384457573,1757425848295,-354.23,0.00013972,2]
[384457574,1757425848304,-480.0,0.00013972,2]
[384457575,1757425848313,-151.0,0.00013972,2]
[384457576,1757425848323,-480.0,0.00013972,2]
[384457577,1757425848335,-480.0,0.00013972,2]
[384457578,1757425848344,-945.22,0.00013972,2]
[384457579,1757425848355,-480.0,0.00013972,2]
[384457580,1757425848365,-480.0,0.00013972,2]
[384457581,1757425848374,-480.0,0.00013972,2]
[384457582,1757425848383,-930.8,0.00013972,2]
[384457583,1757425848393,-480.0,0.00013972,2]
[384457584,1757425848403,-424.65,0.00013972,2]
[384457585,1757425848412,-480.0,0.00013972,2]
[384457586,1757425848422,-480.0,0.00013972,2]
[384457587,1757425848431,-480.0,0.00013972,2]
[384457588,1757425848441,-480.0,0.00013972,2]
[384457589,1757425848450,-1068.62,0.00013972,2]
[384457590,1757425848460,-480.0,0.00013972,2]
[384457591,1757425848469,-539.02,0.00013972,2]
[384457592,1757425848479,-480.0,0.00013972,2]
[384457593,1757425848488,-480.0,0.00013972,2]
[384457594,1757425848498,-480.0,0.00013972,2]
[384457595,1757425848516,-2146.48,0.00013972,2]
[384457596,1757425848526,-2082.23,0.00013972,2]
[384457597,1757425848536,-480.0,0.00013972,2]
[384457598,1757425848546,-480.0,0.00013972,2]
[384457599,1757425848556,-480.0,0.00013972,2]
[384457600,1757425848566,-3051.05,0.00013972,2]
[384457601,1757425848578,-705.78,0.00013972,2]
[384457602,1757425848587,-632.01,0.00013972,2]
[384457603,1757425848597,-480.0,0.00013972,2]
[384457604,1757425848607,-2705.35,0.00013972,2]
[384457605,1757425848617,-480.0,0.00013972,2]
[384457606,1757425848626,-480.0,0.00013972,2]
[384457607,1757425848635,-480.0,0.00013972,2]
[384457608,1757425848646,-680.87,0.00013972,2]
[384457609,1757425848655,-685.22,0.00013972,2]
[384457610,1757425848664,-604.22,0.00013972,2]
[384457611,1757425848674,-480.0,0.00013972,2]
[384457612,1757425848683,-480.0,0.00013972,2]
[384457613,1757425848692,-1386.71,0.00013972,2]
[384457614,1757425848701,-3096.85,0.00013972,2]
[384457615,1757425848711,-480.0,0.00013972,2]
[384457616,1757425848720,-648.36,0.00013972,2]
[384457617,1757425848729,-480.0,0.00013972,2]
[384457618,1757425848739,-1614.94,0.00013972,2]
[384457619,1757425848748,-829.57,0.00013972,2]
[384457620,1757425848759,-480.0,0.00013972,2]
[384457621,1757425848768,-506.82,0.00013972,2]
[384457622,1757425848778,-835.71,0.00013972,2]
[384457623,1757425848787,-480.0,0.00013972,2]
[384457624,1757425848797,-480.0,0.00013972,2]
[384457625,1757425848806,-791.03,0.00013972,2]
[384457626,1757425848816,-151.0,0.00013972,2]
[384457627,1757425848828,-151.0,0.00013972,2]
[384457628,1757425848838,-480.0,0.00013972,2]
[384457629,1757425848848,-1724.16,0.00013972,2]
[384457630,1757425848858,-480.0,0.00013972,2]
[384457631,1757425848868,-480.0,0.00013972,2]
[384457632,1757425848878,-1039.46,0.00013972,2]
[384457633,1757425848887,-803.21,0.00013972,2]
[384457634,1757425848897,-480.0,0.00013972,2]
[384457635,1757425848907,-480.0,0.00013972,2]
[384457636,1757425848917,-480.0,0.00013972,2]
[384457637,1757425848927,-2581.42,0.00013972,2]
[384457638,1757425848937,-880.11,0.00013972,2]
[384457639,1757425848946,-7963.64,0.00013972,2]
[384457640,1757425848956,-707.25,0.00013972,2]
[384457641,1757425848966,-587.78,0.00013972,2]
[384457642,1757425848975,-480.0,0.00013972,2]
[384457643,1757425849022,-480.0,0.00013972,2]
[384457644,1757425849033,-480.0,0.00013972,2]
[384457645,1757425849043,-480.0,0.00013972,2]
[384457646,1757425849053,-480.0,0.00013972,2]
[384457647,1757425849063,-480.0,0.00013972,2]
[384457648,1757425849073,-1056.18,0.00013972,2]
[384457649,1757425849086,-1207.61,0.00013972,2]
[384457650,1757425849098,-854.22,0.00013972,2]
[384457651,1757425849107,-700.41,0.00013972,2]
[384457652,1757425849117,-518.39,0.00013972,2]
[384457653,1757425849127,-1002.33,0.00013972,2]
[384457654,1757425849136,-151.0,0.00013972,2]
[384457655,1757425849146,-2178.24,0.00013972,2]
[384457656,1757425849156,-1093.22,0.00013972,2]
[384457657,1757425849165,-620.45,0.00013972,2]
[384457658,1757425849175,-2956.82,0.00013972,2]
[384457659,1757425849185,-1032.9,0.00013972,2]
[384457660,1757425849195,-1029.14,0.00013972,2]
[384457661,1757425849204,-480.0,0.00013972,2]
[384457662,1757425849214,-3858.79,0.00013972,2]
[384457663,1757425849224,-546.97,0.00013972,2]
[384457664,1757425849233,-5150.25,0.00013972,2]
[384457665,1757425849242,-1401.2,0.00013972,2]
[384457666,1757425849252,-161.11902796,0.00013972,2]
[384457667,1757425849261,-480.0,0.00013972,2]
[384457668,1757425849272,-1828.58,0.00013972,2]
[384457669,1757425849281,-480.0,0.00013972,2]
[384457670,1757425849291,-1043.26,0.00013972,2]
[384457671,1757425849300,-480.0,0.00013972,2]
[384457672,1757425849310,-4693.33,0.00013972,2]
[384457673,1757425849319,-480.0,0.00013972,2]
[384457674,1757425849331,-492.95,0.00013972,2]
[384457675,1757425849341,-480.0,0.00013972,2]
[384457676,1757425849350,-480.0,0.00013972,2]
[384457677,1757425849359,-480.0,0.00013972,2]
[384457678,1757425849369,-480.0,0.00013972,2]
[384457679,1757425849379,-1141.59,0.00013972,2]
[384457680,1757425849389,-913.31,0.00013972,2]
[384457681,1757425849398,-22382.08,0.00013972,2]
[384457682,1757425849408,-480.0,0.00013972,2]
[384457683,1757425849417,-305.29473766,0.00013973,2]
[384457684,1757425849426,-500.0,0.00013973,2]
[384457685,1757425849436,-500.0,0.00013973,2]
[384457686,1757425849445,-500.0,0.00013973,2]
[384457687,1757425849455,-500.0,0.00013973,2]
[384457688,1757425849465,-504.11039704,0.00013973,2]
[384457689,1757425849475,-500.0,0.00013973,2]
[384457690,1757425849485,-500.0,0.00013973,2]
[384457691,1757425849494,-500.0,0.00013973,2]
[384457692,1757425849503,-500.0,0.00013973,2]
[384457693,1757425849513,-258.86054577,0.00013973,2]
[384457694,1757425849522,-500.0,0.00013973,2]
[384457695,1757425849531,-500.0,0.00013973,2]
[384457696,1757425849541,-40965.97795768,0.0001399,2]
[384457697,1757425849551,-253.154088,0.0001399,2]
[384457698,1757425849561,-976.0,0.00013999,2]
[384457699,1757425849570,-2154.0,0.00013999,2]
[384457700,1757425849581,-634.0,0.00013999,2]
[384457701,1757425849590,-409.0,0.00013999,2]
[384457702,1757425849600,-429.6,0.00013999,2]
[384457703,1757425849609,-10578.81621497,0.0001404,2]
[384457704,1757425849618,-1000.0,0.00014136,2]
[384457705,1757425849628,-920.0,0.00014136,2]
[384457706,1757425849637,-1000.0,0.00014221,2]
[384457707,1757425849647,-1000.0,0.00014221,2]
[384457708,1757425849656,-500.0,0.00014245,2]
[384457709,1757425849665,-500.0,0.00014246,2]
[384457710,1757425849675,-480.0,0.00014246,2]
[384457711,1757425849685,-480.0,0.00014246,2]
[384457712,1757425849694,-480.0,0.00014246,2]
[384457713,1757425849704,-480.0,0.00014246,2]
[384457714,1757425849713,-695.16,0.00014246,2]
[384457715,1757425849722,-480.0,0.00014246,2]
[384457716,1757425849731,-480.0,0.00014246,2]
[384457717,1757425849741,-328.03690357,0.00014246,2]
[384457718,1757425849750,-480.0,0.00014246,2]
[384457719,1757425849760,-480.0,0.00014246,2]
[384457720,1757425849770,-480.0,0.00014246,2]
[384457721,1757425849779,-480.0,0.00014246,2]
[384457722,1757425849789,-649.28,0.00014246,2]
[384457723,1757425849799,-480.0,0.00014246,2]
[384457724,1757425849808,-480.0,0.00014246,2]
[384457725,1757425849818,-480.0,0.00014246,2]
[384457726,1757425849828,-480.0,0.00014246,2]
[384457727,1757425849838,-1424.53,0.00014246,2]
[384457728,1757425849847,-578.70045552,0.00014246,2]
[384457729,1757425849857,-537.68,0.00014246,2]
[384457730,1757425849866,-480.0,0.00014246,2]
[384457731,1757425849876,-480.0,0.00014246,2]
[384457732,1757425849886,-480.0,0.00014246,2]
[384457733,1757425849895,-462.36,0.00014246,2]
[384457734,1757425849905,-779.61,0.00014246,2]
[384457735,1757425849914,-500.0,0.00014246,2]
[384457736,1757425849924,-157.0,0.00014246,2]
[384457737,1757425849933,-193.03,0.00014246,2]
[384457738,1757425849943,-480.0,0.00014246,2]
[384457739,1757425849952,-480.0,0.00014246,2]
[384457740,1757425849962,-389.68834015,0.00014246,2]
[384457741,1757425849972,-860.85,0.00014246,2]
[384457742,1757425849981,-885.25,0.00014246,2]
[384457743,1757425849991,-706.34,0.00014246,2]
[384457744,1757425850000,-480.0,0.00014246,2]
[384457745,1757425850009,-480.0,0.00014246,2]
[384457746,1757425850019,-322.50983692,0.00014246,2]
[384457747,1757425850032,-480.0,0.00014246,2]
[384457748,1757425850041,-1604.11,0.00014246,2]
[384457749,1757425850051,-480.0,0.00014246,2]
[384457750,1757425850060,-488.19996602,0.00014246,2]
[384457751,1757425850070,-480.0,0.00014246,2]
[384457752,1757425850081,-151.0,0.00014246,2]
[384457753,1757425850091,-616.08,0.00014246,2]
[384457754,1757425850101,-480.0,0.00014246,2]
[384457755,1757425850111,-480.0,0.00014246,2]
[384457756,1757425850121,-480.0,0.00014246,2]
[384457757,1757425850130,-480.0,0.00014246,2]
[384457758,1757425850140,-480.0,0.00014246,2]
[384457759,1757425850149,-480.0,0.00014246,2]
[384457760,1757425850158,-480.0,0.00014246,2]
[384457761,1757425850167,-480.0,0.00014246,2]
[384457762,1757425850177,-480.0,0.00014246,2]
[384457763,1757425850186,-480.0,0.00014246,2]
[384457764,1757425850195,-480.0,0.00014246,2]
[384457765,1757425850205,-480.0,0.00014246,2]
[384457766,1757425850214,-563.55,0.00014246,2]
[384457767,1757425850223,-480.0,0.00014246,2]
[384457768,1757425850233,-480.0,0.00014246,2]
[384457769,1757425850242,-480.0,0.00014246,2]
[384457770,1757425850253,-219.42815746,0.00014246,2]
[384457771,1757425850263,-480.0,0.00014246,2]
[384457772,1757425850273,-802.39,0.00014246,2]
[384457773,1757425850282,-480.0,0.00014246,2]
[384457774,1757425850293,-480.0,0.00014246,2]
[384457775,1757425850303,-480.0,0.00014246,2]
[384457776,1757425850313,-777.5,0.00014246,2]
[384457777,1757425850322,-480.0,0.00014246,2]
[384457778,1757425850332,-480.0,0.00014246,2]
[384457779,1757425850342,-510.30630317,0.00014246,2]
[384457780,1757425850351,-480.0,0.00014246,2]
[384457781,1757425850361,-480.0,0.00014246,2]
[384457782,1757425850370,-814.12,0.00014246,2]
[384457783,1757425850380,-157.0,0.00014246,2]
[384457784,1757425850390,-157.0,0.00014246,2]
[384457785,1757425850399,-480.0,0.00014246,2]